Cogmind - Beta 13 @@@ ROGUE MODE // 2024.04.06 @ 19:44:55 Player: Cyurio Result: Destroyed by G-34 Mercenary with Small Laser Performance ------------- Evolutions (0) 0 Regions Visited (2) 400 Robots Destroyed (30) 150 Value Destroyed (596) 596 Prototype IDs (0) 0 Alien Tech Used (0) 0 Bonus (0) 0 TOTAL SCORE: 1146 Bonus ------- None Cogmind --------- Core Integrity 0/250 Matter 184/300 Energy 125/125 System Corruption 1% Temperature Cool (6) Movement Walking (120) Location -10/Mines Parts ------- > --- POWER (1) -------- Light Ion Engine > --- PROPULSION (2) --- Aluminum Leg Aluminum Leg > --- UTILITY (2) ------ Medium Storage Unit Sensor Array > --- WEAPON (2) ------- Assault Rifle Assault Rifle > --- INVENTORY (10) --- Aluminum Leg Aluminum Leg Compact Wheel Small Storage Unit Large Storage Unit Signal Interpreter Assault Rifle Datajack Welding Torch Peak State ------------ > --- POWER ------------ Ion Engine > --- PROPULSION ------- Aluminum Leg Aluminum Leg > --- UTILITY ---------- Medium Storage Unit Sensor Array > --- WEAPON ----------- Small Laser Mining Claw > --- INVENTORY -------- Light Ion Engine Aluminum Leg Aluminum Leg Compact Wheel Small Storage Unit Large Storage Unit Signal Interpreter Medium Laser Datajack Welding Torch [Rating: 8] Favorites ----------- Power Light Ion Engine Engine Light Ion Engine Propulsion Aluminum Leg Leg Aluminum Leg Utility Sensor Array Device Sensor Array Storage Medium Storage Unit Weapon Assault Rifle Energy Gun Medium Laser Ballistic Gun Assault Rifle Slashing Weapon Mining Claw Build | -11 -10 -10 ------- Run | Yrd Mat Min Slots Evolved . | . . . Power . | . . . Propulsion . | . . . Utility . | . . . Weapon . | . . . Parts Attached 17 | . 15 2 Power 3 | . 2 1 Engine 3 | . 2 1 Core . | . . . Reactor . | . . . Propulsion 4 | . 4 . Treads . | . . . Leg 4 | . 4 . Wheel . | . . . Hover . | . . . Flight . | . . . Utility 2 | . 2 . Device 1 | . 1 . Storage 1 | . 1 . Processor . | . . . Hackware . | . . . Protection . | . . . Artifact . | . . . Weapon 8 | . 7 1 Energy Gun 1 | . 1 . Energy Cannon . | . . . Ballistic Gun 6 | . 5 1 Ballistic Cannon . | . . . Launcher . | . . . Special Weapon . | . . . Impact Weapon . | . . . Slashing Weapon 1 | . 1 . Piercing Weapon . | . . . Special Melee Weapon . | . . . Unidentified Prototypes . | . . . Parts Lost 7 | . 5 2 Power 3 | . 2 1 Propulsion 2 | . 2 . Utility . | . . . Weapon 2 | . 1 1 Highest Loss Streak 2 | . 2 1 To Critical Strikes . | . . . Average Slot Usage (%) 96 | . 95 98 Engine 13 | . 14 12 Leg 26 | . 25 28 Device 12 | . 12 14 Storage 14 | . 14 14 Energy Gun 10 | . 12 . Ballistic Gun 16 | . 14 28 Naked Turns . | . . . Heaviest Build 19 | 12 19 18 Greatest Support 20 | 20 20 20 Greatest Overweight (x) 1 | . 1 . Average Overweight (x) . | . . . Largest Inventory Capacity 10 | . 10 10 Average Capacity 9 | . 9 10 Most Carried 10 | . 10 10 Average Carried 7 | . 7 9 Final Capacity 10 | 8 10 10 Final Carried 10 | 6 10 9 Class Distribution -------------------- 57% | Scavenger-Mutant 42% | Mutant Dominant Class ---------------- Scavenger-Mutant | -10/Materials Scavenger-Mutant | -10/Mines Resources | -11 -10 -10 ----------- Run | Yrd Mat Min Matter Collected 492 | 200 251 41 Remotely . | . . . Salvage Created 829 | . 634 195 Parts 69 | . 52 17 Haulers Intercepted 1 | . 1 . Recyclers Shooed . | . . . Parts Field Recycled . | . . . Retrieved Matter . | . . . Parts Self-Destructed . | . . . Prevented . | . . . Kills | -11 -10 -10 ------- Run | Yrd Mat Min Combat Hostiles Destroyed 26 | . 19 7 Guns 26 | . 19 7 Classes Destroyed 6 | . 5 1 Worker 1 | . . 1 Hauler 1 | . 1 . Operator 1 | . 1 . Watcher 1 | . 1 . Swarmer 14 | . 9 5 Grunt 12 | . 10 2 Best Kill Streak 4 | . 4 3 Combat Bots Only 3 | . 3 3 Max Kills in Single Turn 2 | . 1 2 Gunslinging . | . . . Exploded . | . . . Melee . | . . . Uniques/NPCs Destroyed . | . . . Combat | -11 -10 -10 -------- Run | Yrd Mat Min Hostile Shots Fired 175 | . 122 53 Missed 56 | . 35 21 Damage Taken 1140 | . 830 310 Core 252 | . 156 96 Absorbed by Shields . | . . . Core Remaining (%) 100 | 100 . . Volleys Fired 87 | . 68 19 Largest 2 | . 2 2 Hottest 90 | . 90 40 Shots Fired 171 | . 133 38 Gun 171 | . 133 38 Cannon . | . . . Launcher . | . . . Special . | . . . Kinetic 111 | . 73 38 Thermal 60 | . 60 . Explosive . | . . . Electromagnetic . | . . . Robot Hit Streak 9 | . 9 8 Robot Miss Streak 5 | . 5 3 Penetration Max . | . . . Secondary Targets . | . . . Shots Hit Robots 110 | . 87 23 Core Hits 46 | . 34 12 Critical Kills . | . . . Critical Parts Destroyed . | . . . Critical Strikes 3 | . 3 . Burn 3 | . 3 . Melee Attacks 2 | . 2 . Impact . | . . . Slashing 2 | . 2 . Piercing . | . . . Sneak Attacks 2 | . 2 . Combat Hostiles . | . . . Follow-up Attacks . | . . . Damage Inflicted 1377 | . 1047 330 Guns 1265 | . 935 330 Cannons . | . . . Explosions . | . . . Melee 112 | . 112 . Ramming . | . . . Kinetic 784 | . 454 330 Thermal 481 | . 481 . Explosive . | . . . Electromagnetic . | . . . Impact . | . . . Slashing 112 | . 112 . Piercing . | . . . Highest Corruption 1 | . 1 1 Average Corruption 1 | . 1 1 Corruption Purged . | . . . Corruption Blocked . | . . . Effects 14 | . 12 2 Message Errors 3 | . 3 . Matter Fused 3 | . 1 2 Heat Flow Errors 3 | . 3 . Energy Discharges 2 | . 2 . Data Loss (minor) 3 | . 3 . Overload Shots . | . . . Overflow Damage 53 | . 53 . Projectiles . | . . . Explosions . | . . . Melee 53 | . 53 . Knockbacks . | . . . Impact . | . . . Kinetic . | . . . Secondary . | . . . Self-Inflicted Damage . | . . . Shots . | . . . Rammed . | . . . Targets Rammed . | . . . Kicked . | . . . Crushed . | . . . Highest Temperature 251 | . 251 2 Average Temperature 65 | . 67 2 Received Heat Transfer 312 | . 240 72 Siege Activations . | . . . Robots Corrupted . | . . . Combat Hostiles . | . . . Parts Fried . | . . . Impact Corruptions . | . . . Robots Melted . | . . . Combat Hostiles . | . . . Parts Melted 3 | . 3 . Heat Transferred 1522 | . 1522 . Parts Sabotaged . | . . . Parts Stolen . | . . . Parts Stripped . | . . . Power Chain Reactions . | . . . Alert | -11 -10 -10 ------- Run | Yrd Mat Min Peak Influence 283 | . 283 238 Initial 53 | . . 53 Average 154 | . 155 141 Maximum Alert Level 1 | . 1 1 Low Security (%) 74 | . 72 91 Level 1 25 | . 27 8 Level 2 . | . . . Level 3 . | . . . Level 4 . | . . . Level 5 . | . . . High Security . | . . . Max Security . | . . . Squads Dispatched 4 | . 4 . Investigation 2 | . 2 . Extermination . | . . . Reinforcement 2 | . 2 . Assault . | . . . Garrison . | . . . Intercept . | . . . Searches Triggered . | . . . Construction Impeded . | . . . Haulers Reinforced . | . . . Active Scanning Responses . | . . . Cargo Convoy Interrupts . | . . . Stealth | -11 -10 -10 --------- Run | Yrd Mat Min Distress Signals 1 | . 1 . Communications Jammed . | . . . Distress Signals . | . . . Times Spotted 47 | . 38 9 Peak Tracking Total 4 | . 4 3 Tactical Retreats 5 | . 4 1 Traps | -11 -10 -10 ------- Run | Yrd Mat Min Traps Triggered 3 | . 3 . Indirectly . | . . . Trap Hack Attempts . | . . . Triggered . | . . . Disarmed . | . . . Reprogrammed . | . . . Reused . | . . . Traps Extracted . | . . . Installed . | . . . Triggered . | . . . Machines | -11 -10 -10 ---------- Run | Yrd Mat Min Machines Disabled . | . . . Max in Single Turn . | . . . Machines Repaired . | . . . Machines Dismantled . | . . . Machines Sabotaged . | . . . Overloaded Fab Kills . | . . . Hacking | -11 -10 -10 --------- Run | Yrd Mat Min Machines Accessed . | . . . Terminals . | . . . Fabricators . | . . . Repair Stations . | . . . Recycling Units . | . . . Scanalyzers . | . . . Garrison Access . | . . . Total Hacks . | . . . Successful . | . . . Failed . | . . . Catastrophic . | . . . Database Lockouts . | . . . Manual . | . . . Terminals . | . . . Fabricators . | . . . Repair Stations . | . . . Recycling Units . | . . . Scanalyzers . | . . . Garrison Access . | . . . Terminal Hacks . | . . . Fabricator Hacks . | . . . Repair Station Hacks . | . . . Recycling Unit Hacks . | . . . Scanalyzer . | . . . Garrison Access Hacks . | . . . Unauthorized Hacks . | . . . Terminals . | . . . Fabricators . | . . . Repair Stations . | . . . Recycling Units . | . . . Scanalyzers . | . . . Garrison Access . | . . . Data Cores Recovered . | . . . Used . | . . . Hacking Detections . | . . . Full Trace Events . | . . . Feedback Events . | . . . Feedback Blocked . | . . . Robot Schematics Acquired . | . . . Robots Built . | . . . Authchips . | . . . Time . | . . . Total Robot Build Rating . | . . . Part Schematics Acquired . | . . . Parts Built . | . . . Authchips . | . . . Time . | . . . Total Part Build Rating . | . . . Parts Repaired . | . . . Time . | . . . Parts Recycled . | . . . Recycled Matter . | . . . Retrieved Matter . | . . . Retrieved Components . | . . . Parts Scanalyzed . | . . . Part Schematics Acquired . | . . . Parts Damaged . | . . . Bothacking | -11 -10 -10 ------------ Run | Yrd Mat Min Used RIF Installer . | . . . Robots Hacked . | . . . Non-combat . | . . . Combat . | . . . Robot Hacks Applied . | . . . Relay Couplers Released . | . . . Fabnet Peak Effective % . | . . . Robots Rewired . | . . . Allies Hacked . | . . . Hacks Repelled . | . . . Allies | -11 -10 -10 -------- Run | Yrd Mat Min Total Allies . | . . . Largest Group . | . . . Highest-Rated Group . | . . . Highest-Rated Ally . | . . . Total Orders . | . . . Ally Attacks . | . . . Total Damage . | . . . Kills . | . . . Allies Corrupted . | . . . Allies Melted . | . . . Intel | -11 -10 -10 ------- Run | Yrd Mat Min Robot Analysis Total . | . . . Derelict Logs Recovered 1 | . . 1 Drone Launches . | . . . Drone Recoveries . | . . . Exploration | -11 -10 -10 ------------- Run | Yrd Mat Min Turns Passed 1416 | . 1257 159 Spaces Moved 825 | 1 742 82 Core . | . . . Treads . | . . . Legs 825 | 1 742 82 Wheels . | . . . Hover . | . . . Flight . | . . . Fastest Speed 120 | 120 120 120 Average Speed 125 | 120 125 120 Slowest Speed 190 | 120 190 120 Overloaded Moves . | . . . Propulsion Burnouts . | . . . Robots Hopped . | . . . Cave-ins Triggered . | . . . Exploration Rate (%) 39 | 2 91 24 Regions Visited 2 Branch Regions 1 Pre-discovered Areas 1 | . . 1 Known Exits Taken . | . . . Unknown Exits Taken 2 | 1 1 . Scrap Searched . | . . . Spaces Dug . | . . . Terrain Destroyed . | . . . Melee . | . . . Projectile . | . . . AOE . | . . . Terrain Rammed . | . . . Walls Destroyed . | . . . Machines Disabled . | . . . Actions | -11 -10 -10 --------- Run | Yrd Mat Min Total 1044 | . 939 105 Wait 96 | . 94 2 Move 823 | . 741 82 Hop . | . . . Pick Up 8 | . 8 . Fast Attach 7 | . 6 1 Attach 4 | . 3 1 Detach 1 | . 1 . Swap 6 | . 6 . Drop 10 | . 10 . Fire 87 | . 68 19 Melee 2 | . 2 . Ram . | . . . Kick . | . . . Crush . | . . . Escape Stasis . | . . . Rewire . | . . . Trap . | . . . Miscellaneous . | . . . Route ------- -11/Scrapyard -10/Materials (discovered 4 exits: [*Mat x3] / [*Min]) -10/Mines (discovered 1 exit: [*Mat]) History --------- Turn | Location | Event 1 | -11/Scrapyard | Discovered new exit (range 0) 1 | -11/Scrapyard | Entered Materials 313 | -10/Materials | Discovered new exit (range 8) 316 | -10/Materials | Build established: Mutant 445 | -10/Materials | Discovered new exit (range 8) 549 | -10/Materials | Discovered new exit (range 10) 636 | -10/Materials | Build established: Scavenger-Mutant 947 | -10/Materials | Core integrity fell below 50% 1061 | -10/Materials | Discovered new exit (range 10) 1258 | -10/Materials | Entered Mines 1293 | -10/Mines | Discovered new exit (range 7) 1295 | -10/Mines | Learned location of Recycling (-8) 1329 | -10/Mines | Met a Derelict bent on vengeance 1351 | -10/Mines | Core integrity fell below 20% 1417 | -10/Mines | Destroyed by G-34 Mercenary with Small Laser Last Messages --------------- 01296_ R-06 Scavenger collects Flight Unit. 01297_ K-01 Serf collects debris. 01341_ System corrupted: Matter fused (-6). 01349_ S-10 Pest destroyed. 01353_ K-01 Serf collects debris. 01358_ S-10 Pest destroyed. 01358_ K-01 Serf destroyed. 01359_ R-06 Scavenger collects Sml. Matter Pod. 01361_ Acquired 13 matter. 01362_ Acquired 17 matter. 01363_ R-06 Scavenger collects Lgt. Ion Engine. 01372_ K-01 Serf collects debris. 01388_ G-47 Trooper: "SECOND INTRUDER APPROACHING. ELIMINATE." 01390_ System corrupted: Matter fused (-9). 01393_ K-01 Serf collects debris. 01400_ Assault Rifle destroyed. 01403_ G-47 Trooper destroyed. 01409_ G-34 Mercenary destroyed. 01412_ K-01 Serf collects debris. Map ----- +----------------------------------------------------+ | ???????????????????????????????????#% #? | | ???????????????????????????????????# ##? | | ???????????????????????????????????# [ # #?? | | ???????????????????????????????????# ## #?? | | ???????????????????????????????????## ### #?? | | ????????????????????????????????????####?# #?? | | ?????????????????????????????????????????# #?? | | ?????????????????????????????????????????# #?? | | ?????????????????????????????????????????# #?? | | ????????????????????????????????????????##%*#?? | | ????????????????????????????????????????#===#?? | | ????????????????????????????????????????# ###?? | | ????????????????????????????????????????# #???? | | ???????????????????????????????????????##=#???? | | ??????????????????????????????????????## ##??? | | ????????????????????????????????????### #??? | | ???????????????????????????????????## #??? | | ??????????????????????????????????## #??? | | ????????????????????????????####### ##??? | | ???????????????????????????## ##???? | | ??????????????????????????## ? ##????? | | ?????????????????????????## ##?????? | | ????????????????????#????# #####??????? | | ????????????????????#k???# ##??????????? | | ????????????????????#g#### ###?????????? | | ???????????????????##[@## #?????? | | ???????????????????# = ???? | | ???????????????????# ???? | | ???????????????????# t ## ????? | | ??????????????????# ##?# #???? | | ??????????????????# # ## #???#####????? | | ??????????????????# ## ### #????????????? | | ??????????????????## ### #?# #????????????? | | ???????????????????#####?# #?# #????????????? | | ????????????????????????? ?# #????????????? | | ????????????????????????? #? #????????????? | | ????????????????????????? ?? #????????????? | | ????????????????????????? ?? ?????????????? | | ????????????????????????? ???????????????? | | ????????????????????????? ???????????????? | | ?????????????????????????? ?????????????????? | | ??????????????????????????????????????????????? | | ??????????????????????????????????????????????? | | ??????????????????????????????????????????????? | | ??????????????????????????????????????????????? | | ??????????????????????????????????????????????? | | ??????????????????????????????????????????????? | | ??????????????????????????????????????????????? | | ??????????????????????????????????????????????? | | ??????????????????????????????????????????????? | +----------------------------------------------------+ Best States ------------- Heat Dissipation 25 Energy Generation 10 Energy Capacity 250 Matter Stores 300 Matter Capacity 300 Sight Range 16 Robot Scan Range 14 Terrain Scan Density 10 Evasion (%) 55 Item Schematics ----------------- None Robot Schematics ------------------ None Fabricated ------------ Nothing Alien Tech Used ----------------- None Achievements -------------- None Challenges ------------ None Game ------ Seed HeatSeismicProcessor Manual? 0 Play Time 00:09:20 Cumulative 98.2 hours Start 2024.04.06 @ 19:36:35 End 2024.04.06 @ 19:44:55 Sessions 1 Manual Loads 0 Difficulty Rogue Special Mode None Game No. 144 Rogue 144 Adventurer 0 Explorer 0 Win Type - Total 1 Types 1/0/0/0/0/0/0/0/0 Lore% 43 Gallery% 47 Achievement% 41 Wizard Run 0 Options --------- Layout 2 ASCII 0 Keyboard 1 Movement Vi Keybinds 1 Fullscreen 1 Font 32/SmallcapsGlow Map View 50x44 Zoom Use 0% Tactical HUD 1 Map Filters NONE Filters NONE Steam 1 RUN: 4dbc283f-7752-4d8c-b4be-10e9464ec299